[Event "KAZ-ch Women 2019"]
[Site "Almaty"]
[Date "2019.04.22"]
[Round "2.2"]
[White "Davletbayeva, Madina"]
[Black "Shauken, Aruzhan"]
[Result "1-0"]
[ECO "C07"]
[WhiteElo "2286"]
[BlackElo "1685"]
[Annotator "NA"]
[PlyCount "93"]
[EventDate "2019.04.21"]
[EventType "tourn"]
[EventCountry "KAZ"]
[SourceTitle "playchess.com"]
[Source "ChessBase"]
[SourceQuality "1"]
[TimeControl "40/5400+30:1800+30"]

1. e4 {[%emt 0:00:00]} e6 {[%emt 0:00:00]} 2. d4 {[%emt 0:00:00]} d5 {[%emt 0:00:00]} 3. Nd2 {[%emt 0:00:08]} c5 {[%emt 0:00:18]} 4. exd5 {[%emt 0:00:32]} Qxd5 {[%emt 0:01:27]} 5. Ngf3 {[%emt 0:00:56]} cxd4 {[%emt 0:00:27]} 6. Bc4 {[%emt 0:00:32]} Qd6 {[%emt 0:00:30]} 7. O-O {[%emt 0:00:59]} Nf6 {[%emt 0:00:41]} 8. Nb3 {[%emt 0:00:54]} Nc6 {[%emt 0:00:56]} 9. Nbxd4 {[%emt 0:01:09]} Nxd4 {[%emt 0:00:45]} 10. Nxd4 {[%emt 0:00:40]} a6 {[%emt 0:00:46]} 11. Re1 {[%emt 0:01:30]} Qc7 {[%emt 0:01:41]} 12. Bf1 {[%emt 0:01:19]} Bd7 {[%emt 0:02:28]} 13. Bg5 {[%emt 0:09:31]} O-O-O {[%emt 0:03:45]} 14. Re3 {[%emt 0:04:36]} Bc6 {[%emt 0:11:13]} 15. Rd3 {[%emt 0:19:04]} Bc5 {[%emt 0:04:54]} 16. Nxc6 {[%emt 0:10:29]} Qxc6 {[%emt 0:00:31]} 17. Qf3 {[%emt 0:04:29]} Qxf3 {[%emt 0:04:36]} 18. Rxf3 {[%emt 0:00:17]} Be7 {[%emt 0:01:31]} 19. Re1 {[%emt 0:04:45]} h6 {[%emt 0:01:46]} 20. Bh4 {[%emt 0:01:55]} Kb8 {[%emt 0:01:28]} 21. h3 {[%emt 0:02:21]} Rhf8 {[%emt 0:02:36]} 22. Rb3 {[%emt 0:07:02]} Ka7 {[%emt 0:03:52]} 23. Be2 {[%emt 0:01:45]} g5 {[%emt 0:02:13]} 24. Bg3 {[%emt 0:01:24]} Ne4 {[%emt 0:04:24]} 25. Bf3 {[%emt 0:03:18]} Nc5 {[%emt 0:00:12]} 26. Rc3 {[%emt 0:01:07]} Rd7 {[%emt 0:03:29]} 27. Rc4 {[%emt 0:02:54]} b5 {[%emt 0:03:14]} 28. Rc3 {[%emt 0:01:52]} Na4 {[%emt 0:02:14]} 29. Rc6 {[%emt 0:03:48]} Nxb2 {[%emt 0:01:45]} 30. Rb1 {[%emt 0:02:33]} Na4 {[%emt 0:03:44]} 31. c4 {[%emt 0:02:16]} b4 {[%emt 0:00:49]} 32. Rd1 {[%emt 0:00:40]} Rfd8 {[%emt 0:01:02]} 33. Rxd7+ {[%emt 0:00:36]} Rxd7 {[%emt 0:00:06]} 34. Rc8 {[%emt 0:00:18]} Kb6 {[%emt 0:03:12]} 35. Rc6+ {[%emt 0:00:29]} Ka7 {[%emt 0:00:16]} 36. Rc8 {[%emt 0:01:19]} Kb6 {[%emt 0:00:25]} 37. Bb8 {[%emt 0:04:08]} Nc5 {[%emt 0:07:11]} 38. Rc6+ {[%emt 0:01:15]} Kb7 {[%emt 0:00:52]} 39. Be5 {[%emt 0:01:33]} Ka7 {[%emt 0:01:13]} 40. Bc7 {[%emt 0:00:00]} Na4 {[%emt 0:00:00]} 41. Ba5 {[%emt 0:05:32]} Bd8 {[%emt 0:16:18]} 42. Bxb4 {[%emt 0:01:53]} a5 {[%emt 0:03:49]} 43. Bf8 {[%emt 0:03:38]} Rd2 {[%emt 0:03:36]} 44. c5 {[%emt 0:04:23]} Rb2 {[%emt 0:04:11]} 45. Bd6 {[%emt 0:04:30]} Bf6 {[%emt 0:03:59]} 46. Rc8 {[%emt 0:05:14]} Ka6 {[%emt 0:00:10]} 47. Bc6 {[%emt 0:00:49]} 1-0

[Event "KAZ-ch Women 2019"]
[Site "Almaty"]
[Date "2019.04.22"]
[Round "2.3"]
[White "Dauletova, Gulmira"]
[Black "Serikbay, Assel"]
[Result "1/2-1/2"]
[ECO "B42"]
[WhiteElo "2262"]
[BlackElo "2155"]
[Annotator "NA"]
[PlyCount "94"]
[EventDate "2019.04.21"]
[EventType "tourn"]
[EventCountry "KAZ"]
[SourceTitle "playchess.com"]
[Source "ChessBase"]
[SourceQuality "1"]
[TimeControl "40/5400+30:1800+30"]

1. e4 {[%emt 0:00:00]} c5 {[%emt 0:00:00]} 2. Nf3 {[%emt 0:00:26]} e6 {[%emt 0:00:05]} 3. d4 {[%emt 0:00:16]} cxd4 {[%emt 0:00:11]} 4. Nxd4 {[%emt 0:00:09]} a6 {[%emt 0:00:10]} 5. Bd3 {[%emt 0:00:10]} Nf6 {[%emt 0:00:15]} 6. O-O {[%emt 0:00:15]} d6 {[%emt 0:00:28]} 7. c4 {[%emt 0:00:21]} Be7 {[%emt 0:01:17]} 8. Nc3 {[%emt 0:00:16]} O-O {[%emt 0:01:36]} 9. Be3 {[%emt 0:00:38]} b6 {[%emt 0:00:48]} 10. f4 {[%emt 0:14:10]} Qc7 {[%emt 0:03:39]} 11. g4 {[%emt 0:06:48]} Nbd7 {[%emt 0:40:26]} 12. g5 {[%emt 0:04:56]} Ne8 {[%emt 0:00:09]} 13. Qh5 {[%emt 0:01:41]} Nc5 {[%emt 0:06:42]} 14. Bc2 {[%emt 0:11:19]} g6 {[%emt 0:20:51]} 15. Qh6 {[%emt 0:00:20]} f5 {[%emt 0:04:28]} 16. exf5 {[%emt 0:04:28]} exf5 {[%emt 0:00:01]} 17. Nd5 {[%emt 0:00:24]} Qb7 {[%emt 0:01:27]} 18. Nc6 {[%emt 0:01:14]} Rf7 {[%emt 0:00:07]} 19. Ncxe7+ {[%emt 0:00:49]} Rxe7 {[%emt 0:00:01]} 20. Rae1 {[%emt 0:12:36]} Re6 {[%emt 0:02:24]} 21. b4 {[%emt 0:01:38]} Ne4 {[%emt 0:01:08]} 22. Bb3 {[%emt 0:09:04]} a5 {[%emt 0:04:38]} 23. Nxb6 {[%emt 0:04:02]} Nd2 {[%emt 0:05:58]} 24. c5 {[%emt 0:06:19]} Nxf1 {[%emt 0:02:40]} 25. Rxf1 {[%emt 0:15:20]} Rb8 {[%emt 0:01:09]} 26. Bd5 {[%emt 0:01:24]} Qf7 {[%emt 0:00:22]} 27. Nxc8 {[%emt 0:00:13]} Rxc8 {[%emt 0:00:02]} 28. Rc1 {[%emt 0:02:54]} axb4 {[%emt 0:00:34]} 29. Kf2 {[%emt 0:00:52]} dxc5 30. Bxc5 {[%emt 0:00:31]} Ng7 {[%emt 0:02:05]} 31. Qh3 {[%emt 0:00:48]} Re2+ {[%emt 0:01:05]} 32. Kxe2 {[%emt 0:00:03]} Qxd5 {[%emt 0:00:03]} 33. Qb3 {[%emt 0:01:04]} Qxb3 {[%emt 0:00:10]} 34. axb3 {[%emt 0:00:02]} Ne6 {[%emt 0:00:14]} 35. Be3 {[%emt 0:00:08]} Nd4+ {[%emt 0:00:55]} 36. Kd3 {[%emt 0:00:02]} Rxc1 {[%emt 0:00:08]} 37. Bxc1 {[%emt 0:00:01]} Nxb3 {[%emt 0:00:08]} 38. Be3 {[%emt 0:00:14]} Na5 {[%emt 0:00:30]} 39. Bd2 {[%emt 0:00:11]} Nc6 {[%emt 0:00:13]} 40. Kc4 {[%emt 0:00:00]} b3 {[%emt 0:00:00]} 41. Bc3 {[%emt 0:03:32]} Nd8 {[%emt 0:04:19]} 42. Kxb3 {[%emt 0:02:40]} Ne6 {[%emt 0:00:04]} 43. Be5 {[%emt 0:00:16]} Nc5+ {[%emt 0:00:27]} 44. Kc4 {[%emt 0:09:58]} Ne4 {[%emt 0:00:05]} 45. Kd5 {[%emt 0:00:53]} Kf7 {[%emt 0:00:05]} 46. Bd4 {[%emt 0:01:02]} Nd2 {[%emt 0:02:28]} 47. h3 {[%emt 0:01:41]} Ne4 {[%emt 0:01:17]} 1/2-1/2

[Event "KAZ-ch Women 2019"]
[Site "Almaty"]
[Date "2019.04.22"]
[Round "2.4"]
[White "Nasybullina, Alfia"]
[Black "Sultanbek, Zeinep"]
[Result "0-1"]
[ECO "D32"]
[WhiteElo "2065"]
[BlackElo "1891"]
[Annotator "NA"]
[PlyCount "64"]
[EventDate "2019.04.21"]
[EventType "tourn"]
[EventCountry "KAZ"]
[SourceTitle "playchess.com"]
[Source "ChessBase"]
[SourceQuality "1"]
[TimeControl "40/5400+30:1800+30"]

1. d4 {[%emt 0:00:57]} d5 {[%emt 0:00:00]} 2. c4 {[%emt 0:00:08]} e6 {[%emt 0:00:00]} 3. Nf3 {[%emt 0:00:06]} c5 {[%emt 0:00:00]} 4. cxd5 {[%emt 0:00:55]} exd5 {[%emt 0:00:00]} 5. Nc3 {[%emt 0:00:06]} Nc6 {[%emt 0:00:06]} 6. e3 {[%emt 0:00:24]} Nf6 {[%emt 0:00:09]} 7. Be2 {[%emt 0:00:15]} Be7 {[%emt 0:00:11]} 8. O-O {[%emt 0:00:05]} O-O {[%emt 0:00:03]} 9. a3 {[%emt 0:01:14]} a6 {[%emt 0:00:49]} 10. dxc5 {[%emt 0:03:09]} Bxc5 {[%emt 0:00:25]} 11. b4 {[%emt 0:06:48]} Ba7 {[%emt 0:01:17]} 12. Na4 {[%emt 0:04:53]} b5 {[%emt 0:03:07]} 13. Nc5 {[%emt 0:07:19]} Ne4 {[%emt 0:04:01]} 14. Bb2 {[%emt 0:00:05]} Nxc5 {[%emt 0:09:48]} 15. bxc5 {[%emt 0:00:15]} Bb7 {[%emt 0:02:50]} 16. Nd4 {[%emt 0:03:30]} Ne7 {[%emt 0:07:17]} 17. Nb3 {[%emt 0:02:28]} Rc8 {[%emt 0:00:39]} 18. Bg4 {[%emt 0:00:28]} Rc6 {[%emt 0:01:07]} 19. Qd4 {[%emt 0:04:52]} Rg6 {[%emt 0:00:44]} 20. Bh5 {[%emt 0:03:13]} Nf5 {[%emt 0:00:19]} 21. Qf4 {[%emt 0:08:27]} Rg5 {[%emt 0:02:02]} 22. Bf3 {[%emt 0:02:00]} Bb8 {[%emt 0:00:12]} 23. Qb4 {[%emt 0:00:13]} Nh4 {[%emt 0:03:09]} 24. Kh1 {[%emt 0:06:08]} Nxf3 {[%emt 0:00:14]} 25. gxf3 {[%emt 0:00:04]} d4 {[%emt 0:00:08]} 26. Nxd4 {[%emt 0:04:34]} Qxd4 {[%emt 0:00:12]} 27. e4 {[%emt 0:00:04]} Qd7 {[%emt 0:00:27]} 28. Rg1 {[%emt 0:04:57]} Qh3 {[%emt 0:00:19]} 29. Rg3 {[%emt 0:00:35]} Bxg3 {[%emt 0:00:27]} 30. fxg3 {[%emt 0:00:05]} Rxg3 {[%emt 0:00:35]} 31. Qd2 {[%emt 0:01:22]} Rg6 {[%emt 0:00:26]} 32. Qc3 {[%emt 0:00:45]} Qg2# {[%emt 0:00:06]} 0-1

[Event "KAZ-ch Women 2019"]
[Site "Almaty"]
[Date "2019.04.22"]
[Round "2.5"]
[White "Ankudinova, Yelena"]
[Black "Nakhbayeva, Guliskhan"]
[Result "0-1"]
[ECO "D02"]
[WhiteElo "2099"]
[BlackElo "2303"]
[Annotator "NA"]
[PlyCount "89"]
[EventDate "2019.04.21"]
[EventType "tourn"]
[EventCountry "KAZ"]
[SourceTitle "playchess.com"]
[Source "ChessBase"]
[SourceQuality "1"]
[TimeControl "40/5400+30:1800+30"]

1. d4 {[%emt 0:00:00]} d5 {[%emt 0:00:13]} 2. Nf3 {[%emt 0:00:07]} Nf6 {[%emt 0:00:04]} 3. c4 {[%emt 0:00:57]} e6 {[%emt 0:00:08]} 4. cxd5 {[%emt 0:00:38]} exd5 {[%emt 0:00:07]} 5. Nc3 {[%emt 0:00:10]} c6 {[%emt 0:00:47]} 6. Qc2 {[%emt 0:00:55]} g6 {[%emt 0:02:04]} 7. Bg5 {[%emt 0:03:48]} Be7 {[%emt 0:02:43]} 8. e3 {[%emt 0:05:02]} Bf5 {[%emt 0:00:06]} 9. Bd3 {[%emt 0:03:01]} Bxd3 {[%emt 0:00:05]} 10. Qxd3 {[%emt 0:00:04]} O-O {[%emt 0:00:04]} 11. Bxf6 {[%emt 0:04:30]} Bxf6 {[%emt 0:00:12]} 12. b4 {[%emt 0:00:46]} a6 {[%emt 0:17:31]} 13. a4 {[%emt 0:10:38]} Be7 {[%emt 0:06:03]} 14. Rb1 {[%emt 0:02:32]} b5 {[%emt 0:07:08]} 15. O-O {[%emt 0:08:29]} a5 {[%emt 0:01:16]} 16. axb5 {[%emt 0:02:42]} axb4 {[%emt 0:00:20]} 17. Ne2 {[%emt 0:01:13]} Ra3 {[%emt 0:10:57]} 18. Rb3 {[%emt 0:02:25]} Qa5 {[%emt 0:02:55]} 19. bxc6 {[%emt 0:03:57]} Nxc6 {[%emt 0:00:56]} 20. Rc1 {[%emt 0:01:57]} Qa4 {[%emt 0:04:46]} 21. Nd2 {[%emt 0:25:16]} Na5 {[%emt 0:05:27]} 22. Rxa3 {[%emt 0:00:15]} bxa3 {[%emt 0:00:09]} 23. Nc3 {[%emt 0:01:07]} Rc8 {[%emt 0:01:54]} 24. Qb1 {[%emt 0:16:35]} Qd7 {[%emt 0:06:53]} 25. Na2 {[%emt 0:00:42]} Nc4 {[%emt 0:09:19]} 26. Nb3 {[%emt 0:01:37]} Rb8 {[%emt 0:06:59]} 27. Qc2 {[%emt 0:00:10]} Qa4 {[%emt 0:02:37]} 28. Na1 {[%emt 0:02:03]} Qxc2 {[%emt 0:03:22]} 29. Rxc2 {[%emt 0:00:06]} Rb1+ {[%emt 0:01:14]} 30. Rc1 {[%emt 0:00:03]} Rb2 {[%emt 0:00:02]} 31. Rc2 {[%emt 0:00:09]} Bb4 {[%emt 0:03:29]} 32. Kf1 {[%emt 0:00:16]} Bd2 {[%emt 0:00:52]} 33. Ke2 {[%emt 0:00:13]} Rb1 {[%emt 0:00:15]} 34. e4 {[%emt 0:03:57]} Rxa1 {[%emt 0:00:38]} 35. exd5 {[%emt 0:00:06]} Ba5 {[%emt 0:00:49]} 36. Rxc4 {[%emt 0:00:37]} Rxa2+ {[%emt 0:00:04]} 37. Kf3 {[%emt 0:00:44]} Kf8 {[%emt 0:03:57]} 38. d6 {[%emt 0:00:24]} Ke8 {[%emt 0:00:20]} 39. Ra4 {[%emt 0:00:36]} Bd8 {[%emt 0:00:22]} 40. Ra7 {[%emt 0:00:00]} h5 {[%emt 0:00:00]} 41. g3 {[%emt 0:07:09]} Bf6 {[%emt 0:04:27]} 42. Ke3 {[%emt 0:00:33]} Ra1 {[%emt 0:00:15]} 43. Ke4 {[%emt 0:01:49]} a2 {[%emt 0:03:17]} 44. Kd5 {[%emt 0:00:16]} Bxd4 {[%emt 0:00:23]} 45. Ke4 0-1

[Event "KAZ-ch Women 2019"]
[Site "Almaty"]
[Date "2019.04.23"]
[Round "3.1"]
[White "Nakhbayeva, Guliskhan"]
[Black "Kamalidenova, Meruert"]
[Result "1-0"]
[ECO "E71"]
[WhiteElo "2303"]
[BlackElo "2051"]
[Annotator "NA"]
[PlyCount "101"]
[EventDate "2019.04.21"]
[EventType "tourn"]
[EventCountry "KAZ"]
[SourceTitle "playchess.com"]
[Source "ChessBase"]
[SourceQuality "1"]
[TimeControl "40/5400+30:1800+30"]

1. d4 {[%emt 0:00:00]} Nf6 {[%emt 0:00:00]} 2. c4 {[%emt 0:00:00]} g6 {[%emt 0:00:00]} 3. Nc3 {[%emt 0:00:00]} Bg7 {[%emt 0:00:00]} 4. e4 {[%emt 0:00:00]} d6 {[%emt 0:00:00]} 5. h3 {[%emt 0:00:00]} O-O {[%emt 0:00:00]} 6. Bg5 {[%emt 0:00:01]} c5 {[%emt 0:00:14]} 7. d5 {[%emt 0:00:06]} e6 {[%emt 0:00:05]} 8. Bd3 {[%emt 0:00:07]} exd5 {[%emt 0:00:09]} 9. exd5 {[%emt 0:00:08]} Re8+ {[%emt 0:01:19]} 10. Nge2 {[%emt 0:00:05]} Nbd7 {[%emt 0:01:15]} 11. f4 {[%emt 0:00:06]} h6 {[%emt 0:02:24]} 12. Bh4 {[%emt 0:00:11]} Qa5 {[%emt 0:05:09]} 13. O-O {[%emt 0:01:35]} a6 {[%emt 0:00:46]} 14. a4 {[%emt 0:00:27]} Qc7 {[%emt 0:06:51]} 15. Qc2 {[%emt 0:08:38]} b6 {[%emt 0:04:10]} 16. Rae1 {[%emt 0:03:56]} Nf8 {[%emt 0:02:34]} 17. Bxf6 {[%emt 0:03:04]} Bxf6 {[%emt 0:00:08]} 18. f5 {[%emt 0:00:04]} g5 {[%emt 0:02:19]} 19. Ne4 {[%emt 0:02:04]} Rxe4 {[%emt 0:02:18]} 20. Bxe4 {[%emt 0:00:19]} Bd7 {[%emt 0:01:35]} 21. Bd3 {[%emt 0:13:55]} Rb8 {[%emt 0:03:57]} 22. Nc3 {[%emt 0:04:09]} Nh7 {[%emt 0:03:00]} 23. Kh1 {[%emt 0:02:09]} Qd8 {[%emt 0:06:30]} 24. Ne4 {[%emt 0:08:37]} Kg7 {[%emt 0:12:25]} 25. b3 {[%emt 0:09:15]} Qc7 {[%emt 0:02:08]} 26. Ng3 {[%emt 0:07:56]} Rf8 {[%emt 0:06:55]} 27. Nh5+ {[%emt 0:01:51]} Kh8 {[%emt 0:00:23]} 28. Qe2 {[%emt 0:04:54]} Qd8 {[%emt 0:04:03]} 29. Bc2 {[%emt 0:04:15]} Re8 {[%emt 0:05:46]} 30. Qd3 {[%emt 0:00:27]} Rxe1 {[%emt 0:01:57]} 31. Rxe1 {[%emt 0:00:08]} Qg8 {[%emt 0:00:40]} 32. a5 {[%emt 0:05:29]} b5 {[%emt 0:02:02]} 33. cxb5 {[%emt 0:02:09]} Bxb5 {[%emt 0:01:12]} 34. Qg3 {[%emt 0:02:21]} Qd8 {[%emt 0:06:29]} 35. Bd3 {[%emt 0:00:40]} Bxd3 {[%emt 0:02:36]} 36. Qxd3 {[%emt 0:00:08]} Qc8 {[%emt 0:00:36]} 37. Qc4 {[%emt 0:02:49]} Kg8 {[%emt 0:02:48]} 38. Qa4 {[%emt 0:03:30]} Qxf5 {[%emt 0:01:57]} 39. Qe8+ {[%emt 0:01:58]} Nf8 {[%emt 0:00:24]} 40. Qe4 {[%emt 0:00:00]} Qf2 {[%emt 0:00:00]} 41. Qe2 {[%emt 0:01:31]} Bd4 {[%emt 0:05:44]} 42. Qxf2 {[%emt 0:00:05]} Bxf2 {[%emt 0:00:05]} 43. Re8 {[%emt 0:00:04]} f5 {[%emt 0:01:17]} 44. Ra8 Kf7 {[%emt 0:01:19]} 45. Rxa6 {[%emt 0:01:39]} Be1 {[%emt 0:00:16]} 46. Ra7+ {[%emt 0:00:17]} Kg6 {[%emt 0:00:16]} 47. g4 {[%emt 0:00:04]} fxg4 {[%emt 0:00:07]} 48. hxg4 {[%emt 0:00:04]} Bc3 {[%emt 0:00:04]} 49. a6 {[%emt 0:00:06]} Bd4 {[%emt 0:00:29]} 50. Rg7+ {[%emt 0:00:42]} Bxg7 {[%emt 0:00:05]} 51. a7 {[%emt 0:00:07]} 1-0

[Event "KAZ-ch Women 2019"]
[Site "Almaty"]
[Date "2019.04.23"]
[Round "3.2"]
[White "Sultanbek, Zeinep"]
[Black "Ankudinova, Yelena"]
[Result "1-0"]
[ECO "D02"]
[WhiteElo "1891"]
[BlackElo "2099"]
[Annotator "NA"]
[PlyCount "77"]
[EventDate "2019.04.21"]
[EventType "tourn"]
[EventCountry "KAZ"]
[SourceTitle "playchess.com"]
[Source "ChessBase"]
[SourceQuality "1"]
[TimeControl "40/5400+30:1800+30"]

1. d4 {[%emt 0:00:00]} d5 {[%emt 0:00:00]} 2. Nf3 {[%emt 0:00:00]} Nf6 {[%emt 0:00:00]} 3. g3 {[%emt 0:00:00]} b5 {[%emt 0:00:18]} 4. Bg2 {[%emt 0:00:00]} e6 {[%emt 0:00:15]} 5. O-O {[%emt 0:00:04]} c5 {[%emt 0:00:54]} 6. a4 {[%emt 0:00:22]} b4 {[%emt 0:00:17]} 7. c4 {[%emt 0:01:01]} bxc3 {[%emt 0:01:02]} 8. Nxc3 {[%emt 0:00:31]} Nc6 {[%emt 0:02:32]} 9. Bg5 {[%emt 0:05:56]} Bb7 {[%emt 0:12:46]} 10. Rc1 {[%emt 0:08:49]} Rc8 {[%emt 0:06:53]} 11. dxc5 {[%emt 0:04:26]} Nb4 {[%emt 0:05:44]} 12. Be3 {[%emt 0:09:01]} Bxc5 {[%emt 0:02:26]} 13. Bxc5 {[%emt 0:00:20]} Rxc5 {[%emt 0:00:11]} 14. Qd4 {[%emt 0:00:58]} Rc4 {[%emt 0:37:21]} 15. Qxa7 {[%emt 0:00:12]} Qe7 {[%emt 0:01:02]} 16. Ne5 {[%emt 0:01:20]} Rc8 {[%emt 0:03:02]} 17. Nb5 {[%emt 0:00:41]} O-O {[%emt 0:01:57]} 18. Qb6 {[%emt 0:00:11]} Ba6 {[%emt 0:04:57]} 19. Rxc8 {[%emt 0:13:37]} Rxc8 {[%emt 0:06:07]} 20. Nd6 {[%emt 0:00:12]} Ra8 {[%emt 0:01:02]} 21. Qxb4 {[%emt 0:00:10]} Ne8 {[%emt 0:00:14]} 22. Nexf7 {[%emt 0:00:08]} Nxd6 {[%emt 0:00:15]} 23. Qxd6 {[%emt 0:00:40]} Kxf7 {[%emt 0:04:32]} 24. Qf4+ {[%emt 0:00:19]} Qf6 {[%emt 0:00:17]} 25. Qc7+ {[%emt 0:00:45]} Qe7 {[%emt 0:00:09]} 26. Rc1 {[%emt 0:03:05]} Ra7 {[%emt 0:02:52]} 27. Qf4+ {[%emt 0:01:48]} Qf6 {[%emt 0:01:18]} 28. Rc7+ {[%emt 0:02:13]} Rxc7 {[%emt 0:00:02]} 29. Qxc7+ {[%emt 0:00:06]} Qe7 {[%emt 0:03:23]} 30. Qxe7+ {[%emt 0:00:06]} Kxe7 {[%emt 0:00:04]} 31. e3 {[%emt 0:00:04]} Kd6 {[%emt 0:01:14]} 32. Bf1 {[%emt 0:00:07]} Bc8 {[%emt 0:00:29]} 33. b4 {[%emt 0:00:36]} e5 {[%emt 0:00:30]} 34. f4 {[%emt 0:00:55]} d4 {[%emt 0:00:36]} 35. fxe5+ {[%emt 0:00:11]} Kxe5 {[%emt 0:00:05]} 36. exd4+ {[%emt 0:00:02]} Kxd4 {[%emt 0:00:10]} 37. a5 {[%emt 0:00:48]} Kc3 {[%emt 0:00:21]} 38. b5 {[%emt 0:00:06]} Kb4 {[%emt 0:00:10]} 39. a6 {[%emt 0:00:05]} 1-0

[Event "KAZ-ch Women 2019"]
[Site "Almaty"]
[Date "2019.04.23"]
[Round "3.3"]
[White "Serikbay, Assel"]
[Black "Nasybullina, Alfia"]
[Result "1-0"]
[ECO "A41"]
[WhiteElo "2155"]
[BlackElo "2065"]
[Annotator "NA"]
[PlyCount "143"]
[EventDate "2019.04.21"]
[EventType "tourn"]
[EventCountry "KAZ"]
[SourceTitle "playchess.com"]
[Source "ChessBase"]
[SourceQuality "1"]
[TimeControl "40/5400+30:1800+30"]

1. d4 {[%emt 0:00:00]} d6 {[%emt 0:00:59]} 2. Nf3 {[%emt 0:00:00]} g6 {[%emt 0:00:25]} 3. c4 {[%emt 0:00:00]} Bg7 {[%emt 0:00:09]} 4. Nc3 {[%emt 0:00:28]} Nd7 {[%emt 0:00:08]} 5. g3 {[%emt 0:00:38]} e5 {[%emt 0:00:07]} 6. Bg2 {[%emt 0:00:52]} Ne7 {[%emt 0:00:41]} 7. O-O {[%emt 0:03:00]} O-O {[%emt 0:00:06]} 8. e4 {[%emt 0:00:36]} exd4 {[%emt 0:02:58]} 9. Nxd4 {[%emt 0:00:30]} Nc6 {[%emt 0:00:06]} 10. Nde2 {[%emt 0:28:00]} Nde5 {[%emt 0:00:52]} 11. b3 {[%emt 0:00:19]} f5 {[%emt 0:08:29]} 12. f4 {[%emt 0:27:47]} Ng4 {[%emt 0:00:38]} 13. h3 {[%emt 0:00:19]} Nh6 {[%emt 0:01:52]} 14. c5 {[%emt 0:10:00]} fxe4 {[%emt 0:01:12]} 15. cxd6 {[%emt 0:00:46]} Qxd6 {[%emt 0:03:54]} 16. Qxd6 {[%emt 0:00:41]} cxd6 {[%emt 0:00:05]} 17. Rb1 {[%emt 0:02:15]} Nd4 {[%emt 0:03:07]} 18. Rd1 {[%emt 0:02:37]} Nxe2+ {[%emt 0:06:15]} 19. Nxe2 {[%emt 0:00:01]} Rd8 {[%emt 0:10:34]} 20. g4 {[%emt 0:07:40]} d5 {[%emt 0:02:00]} 21. Be3 {[%emt 0:06:52]} Be6 {[%emt 0:04:50]} 22. Rbc1 {[%emt 0:00:26]} Rdc8 {[%emt 0:04:47]} 23. Rxc8+ {[%emt 0:05:59]} Rxc8 {[%emt 0:00:13]} 24. Bxa7 {[%emt 0:00:10]} Nf7 {[%emt 0:10:03]} 25. Nd4 {[%emt 0:01:49]} Bd7 {[%emt 0:00:13]} 26. a4 {[%emt 0:00:19]} Nd6 {[%emt 0:01:14]} 27. Ne2 {[%emt 0:00:31]} Be6 {[%emt 0:00:23]} 28. Bd4 {[%emt 0:00:42]} Bh6 {[%emt 0:01:47]} 29. Be3 {[%emt 0:00:31]} Bf7 {[%emt 0:00:28]} 30. Kf2 {[%emt 0:00:32]} Bf8 {[%emt 0:02:18]} 31. Rc1 {[%emt 0:00:28]} Ra8 {[%emt 0:00:46]} 32. Rc7 {[%emt 0:00:17]} b5 {[%emt 0:00:24]} 33. Ra7 {[%emt 0:00:45]} Rxa7 {[%emt 0:00:54]} 34. Bxa7 {[%emt 0:00:01]} bxa4 {[%emt 0:00:08]} 35. bxa4 {[%emt 0:00:01]} Nc4 {[%emt 0:00:10]} 36. Bd4 {[%emt 0:01:11]} Bb4 {[%emt 0:04:06]} 37. Nc3 {[%emt 0:00:33]} Na3 {[%emt 0:02:03]} 38. Na2 {[%emt 0:00:50]} Ba5 {[%emt 0:01:17]} 39. Nc1 {[%emt 0:00:32]} Nc2 {[%emt 0:01:36]} 40. Bc5 {[%emt 0:00:00]} Be8 {[%emt 0:00:00]} 41. Nb3 {[%emt 0:02:56]} Be1+ {[%emt 0:02:47]} 42. Ke2 {[%emt 0:00:08]} Bxa4 {[%emt 0:00:46]} 43. Nd4 {[%emt 0:01:17]} Bc3 {[%emt 0:02:20]} 44. Nxc2 {[%emt 0:00:11]} Bxc2 {[%emt 0:00:06]} 45. Ke3 {[%emt 0:00:27]} Bb2 {[%emt 0:00:54]} 46. Bf1 {[%emt 0:11:00]} Bb3 {[%emt 0:02:25]} 47. Bd6 {[%emt 0:03:53]} Kf7 {[%emt 0:01:04]} 48. h4 {[%emt 0:01:48]} Ke6 {[%emt 0:00:27]} 49. Bc7 {[%emt 0:00:05]} Bc2 {[%emt 0:01:35]} 50. Kd2 {[%emt 0:01:20]} Bb1 {[%emt 0:00:42]} 51. Bb5 {[%emt 0:02:13]} d4 {[%emt 0:00:44]} 52. Bc4+ {[%emt 0:00:04]} Kd7 {[%emt 0:00:26]} 53. Be5 {[%emt 0:00:04]} e3+ {[%emt 0:01:28]} 54. Ke2 {[%emt 0:00:15]} Kc6 {[%emt 0:01:10]} 55. Bd3 {[%emt 0:05:09]} Ba2 {[%emt 0:00:15]} 56. f5 {[%emt 0:02:19]} gxf5 {[%emt 0:00:59]} 57. Bxf5 {[%emt 0:02:14]} Bc4+ {[%emt 0:00:31]} 58. Bd3 {[%emt 0:00:15]} Bg8 {[%emt 0:00:27]} 59. Bf4 {[%emt 0:02:37]} Bc1 {[%emt 0:03:37]} 60. g5 {[%emt 0:01:01]} Bf7 {[%emt 0:01:40]} 61. Bxh7 {[%emt 0:00:34]} Kc5 {[%emt 0:04:53]} 62. Be5 {[%emt 0:00:45]} Kc4 {[%emt 0:28:16]} 63. Bd3+ {[%emt 0:00:04]} Kc3 {[%emt 0:00:04]} 64. g6 {[%emt 0:00:41]} Bb3 {[%emt 0:04:56]} 65. Bc7 {[%emt 0:00:34]} Ba3 {[%emt 0:03:39]} 66. Ba5+ {[%emt 0:00:06]} Kb2 {[%emt 0:00:09]} 67. g7 {[%emt 0:00:32]} Kc1 {[%emt 0:00:25]} 68. h5 {[%emt 0:00:33]} Be7 {[%emt 0:00:44]} 69. h6 {[%emt 0:00:27]} Bf6 {[%emt 0:00:02]} 70. Bb4 {[%emt 0:00:42]} Bd1+ {[%emt 0:00:19]} 71. Ke1 {[%emt 0:00:29]} Bb3 {[%emt 0:03:16]} 72. Ba3# {[%emt 0:00:09]} 1-0